fUST/lending_fUST_20240518
["ID","MTS","AMOUNT","RATE_DAILY","PERIOD"]
[327368098,1716024640949,-500.0,0.00016438,2]
[327368099,1716024640962,-496.64266746,0.00016438,2]
[327368100,1716024640973,-500.0,0.00016438,2]
[327368101,1716024640989,-500.0,0.00016438,2]
[327368102,1716024641001,-556.366064,0.00016438,2]
[327368103,1716024641012,-500.0,0.00016438,2]
[327368104,1716024641025,-556.366064,0.00016438,2]
[327368105,1716024641038,-500.0,0.00016438,2]
[327368106,1716024641052,-556.366064,0.00016438,2]
[327368107,1716024641065,-500.0,0.00016438,2]
[327368108,1716024641078,-556.366064,0.00016438,2]
[327368109,1716024641089,-556.366064,0.00016438,2]
[327368110,1716024641100,-500.0,0.00016438,2]
[327368111,1716024641111,-500.0,0.00016438,2]
[327368112,1716024641122,-289.72,0.00016438,2]
[327368113,1716024641134,-556.366064,0.00016438,2]
[327368114,1716024641145,-556.366064,0.00016438,2]
[327368115,1716024641157,-500.0,0.00016438,2]
[327368116,1716024641167,-556.366064,0.00016438,2]
[327368117,1716024641179,-556.366064,0.00016438,2]
[327368118,1716024641189,-500.0,0.00016438,2]
[327368119,1716024641199,-556.366064,0.00016438,2]
[327368120,1716024641209,-151.0,0.00016438,2]
[327368121,1716024641220,-500.0,0.00016438,2]
[327368122,1716024641231,-500.0,0.00016438,2]
[327368123,1716024641241,-151.0,0.00016438,2]
[327368124,1716024641253,-500.0,0.00016438,2]
[327368125,1716024641266,-151.0,0.00016438,2]
[327368126,1716024641277,-500.0,0.00016438,2]
[327368127,1716024641288,-502.67671451,0.00016438,2]
[327368128,1716024641299,-602.11409,0.00016438,2]
[327368129,1716024641310,-500.0,0.00016438,2]
[327368130,1716024641322,-500.0,0.00016438,2]
[327368131,1716024641333,-500.0,0.00016438,2]
[327368132,1716024641345,-151.0,0.00016438,2]
[327368133,1716024641359,-151.0,0.00016438,2]
[327368134,1716024641373,-151.0,0.00016438,2]
[327368135,1716024641384,-151.0,0.00016438,2]
[327368136,1716024641394,-151.0,0.00016438,2]
[327368137,1716024641406,-1390.03,0.00016438,2]
[327368138,1716024641416,-229.79746798,0.00016438,2]
[327368139,1716024641427,-500.0,0.00016438,2]
[327368140,1716024641438,-503.05767516,0.00016438,2]
[327368141,1716024641450,-500.0,0.00016438,2]
[327368142,1716024641461,-500.0,0.00016438,2]
[327368143,1716024641472,-504.16922153,0.00016438,2]
[327368144,1716024641484,-500.0,0.00016438,2]
[327368145,1716024641495,-500.0,0.00016438,2]
[327368146,1716024641505,-500.0,0.00016438,2]
[327368147,1716024641515,-500.0,0.00016438,2]
[327368148,1716024641526,-500.0,0.00016438,2]
[327368149,1716024641537,-500.0,0.00016438,2]
[327368150,1716024641549,-500.0,0.00016438,2]
[327368151,1716024641561,-500.0,0.00016438,2]
[327368152,1716024641571,-639.03,0.00016438,2]
[327368153,1716024641581,-500.0,0.00016438,2]
[327368154,1716024641597,-500.0,0.00016438,2]
[327368155,1716024641620,-500.0,0.00016438,2]
[327368156,1716024641645,-500.0,0.00016438,2]
[327368157,1716024641672,-1332.981547,0.00016438,2]
[327368158,1716024641696,-1332.981547,0.00016438,2]
[327368159,1716024641720,-492.91826203,0.00016438,2]
[327368160,1716024641745,-571.96,0.00016438,2]
[327368161,1716024641764,-500.0,0.00016438,2]
[327368162,1716024641774,-1332.981547,0.00016438,2]
[327368163,1716024641785,-1332.981547,0.00016438,2]
[327368164,1716024641795,-1332.981547,0.00016438,2]
[327368165,1716024641806,-500.0,0.00016438,2]
[327368166,1716024641817,-500.0,0.00016438,2]
[327368167,1716024641827,-1332.981547,0.00016438,2]
[327368168,1716024641839,-1332.981547,0.00016438,2]
[327368169,1716024641850,-1332.981547,0.00016438,2]
[327368170,1716024641860,-500.0,0.00016438,2]
[327368171,1716024641872,-1332.981547,0.00016438,2]
[327368172,1716024641883,-500.0,0.00016438,2]
[327368173,1716024641893,-1332.981547,0.00016438,2]
[327368174,1716024641904,-393.61265773,0.00016438,2]
[327368175,1716024641915,-500.0,0.00016438,2]
[327368176,1716024641926,-727.89,0.00016438,2]
[327368177,1716024641937,-500.0,0.00016438,2]
[327368178,1716024641948,-500.0,0.00016438,2]
[327368179,1716024641958,-500.0,0.00016438,2]
[327368180,1716024641968,-500.0,0.00016438,2]
[327368181,1716024641980,-500.0,0.00016438,2]
[327368182,1716024641991,-500.0,0.00016438,2]
[327368183,1716024642001,-500.0,0.00016438,2]
[327368184,1716024642012,-151.0,0.00016438,2]
[327368185,1716024642022,-500.0,0.00016438,2]
[327368186,1716024642032,-151.0,0.00016438,2]
[327368187,1716024642043,-151.0,0.00016438,2]
[327368188,1716024642053,-151.0,0.00016438,2]
[327368189,1716024642065,-151.0,0.00016438,2]
[327368190,1716024642075,-151.0,0.00016438,2]
[327368191,1716024642087,-500.0,0.00016438,2]
[327368192,1716024642097,-500.0,0.00016438,2]
[327368193,1716024642107,-500.0,0.00016438,2]
[327368194,1716024642118,-500.0,0.00016438,2]
[327368195,1716024642128,-220.18548516,0.00016438,2]
[327368196,1716024642139,-500.0,0.00016438,2]
[327368197,1716024642149,-606.59884783,0.00016438,2]
[327368198,1716024642159,-500.0,0.00016438,2]
[327368199,1716024642170,-500.0,0.00016438,2]
[327368200,1716024642181,-500.0,0.00016438,2]
[327368201,1716024642191,-503.01819665,0.00016438,2]
[327368202,1716024642201,-500.0,0.00016438,2]
[327368203,1716024642212,-500.0,0.00016438,2]
[327368204,1716024642223,-500.0,0.00016438,2]
[327368205,1716024642234,-500.0,0.00016438,2]
[327368206,1716024642245,-500.0,0.00016438,2]
[327368207,1716024642381,-500.0,0.00016438,2]
[327368208,1716024642392,-500.0,0.00016438,2]
[327368209,1716024642402,-500.0,0.00016438,2]
[327368210,1716024642412,-500.0,0.00016438,2]
[327368211,1716024642421,-500.0,0.00016438,2]
[327368212,1716024642430,-500.0,0.00016438,2]
[327368213,1716024642439,-500.0,0.00016438,2]
[327368214,1716024642448,-500.0,0.00016438,2]
[327368215,1716024642458,-500.0,0.00016438,2]
[327368216,1716024642467,-500.0,0.00016438,2]
[327368217,1716024642477,-500.0,0.00016438,2]
[327368218,1716024642486,-502.50036478,0.00016438,2]
[327368219,1716024642495,-500.0,0.00016438,2]
[327368220,1716024642504,-500.0,0.00016438,2]
[327368221,1716024642513,-500.0,0.00016438,2]
[327368222,1716024642522,-2001.89,0.00016438,2]
[327368223,1716024642531,-500.0,0.00016438,2]
[327368224,1716024642540,-632.27,0.00016438,2]
[327368225,1716024642549,-500.0,0.00016438,2]
[327368226,1716024642559,-500.0,0.00016438,2]
[327368227,1716024642567,-500.0,0.00016438,2]
[327368228,1716024642576,-505.65,0.00016438,2]
[327368229,1716024642587,-156.232021,0.00016438,2]
[327368230,1716024642596,-156.232021,0.00016438,2]
[327368231,1716024642606,-156.232021,0.00016438,2]
[327368232,1716024642615,-156.232021,0.00016438,2]
[327368233,1716024642625,-501.79599175,0.00016438,2]
[327368234,1716024642634,-156.232021,0.00016438,2]
[327368235,1716024642643,-156.232021,0.00016438,2]
[327368236,1716024642652,-500.0,0.00016438,2]
[327368237,1716024642660,-156.232021,0.00016438,2]
[327368238,1716024642670,-156.232021,0.00016438,2]
[327368239,1716024642679,-500.0,0.00016438,2]
[327368240,1716024642687,-156.232021,0.00016438,2]
[327368241,1716024642697,-156.232021,0.00016438,2]
[327368242,1716024642706,-156.232021,0.00016438,2]
[327368243,1716024642715,-156.232021,0.00016438,2]
[327368244,1716024642723,-500.0,0.00016438,2]
[327368245,1716024642732,-500.0,0.00016438,2]
[327368246,1716024642741,-500.0,0.00016438,2]
[327368247,1716024642750,-151.0,0.00016438,2]
[327368248,1716024642759,-500.0,0.00016438,2]
[327368249,1716024642768,-151.0,0.00016438,2]
[327368250,1716024642778,-151.0,0.00016438,2]
[327368251,1716024642787,-151.0,0.00016438,2]
[327368252,1716024642796,-151.0,0.00016438,2]
[327368253,1716024642805,-151.0,0.00016438,2]
[327368254,1716024642814,-500.0,0.00016438,2]
[327368255,1716024642823,-500.0,0.00016438,2]
[327368256,1716024642833,-151.0,0.00016438,2]
[327368257,1716024642843,-151.0,0.00016438,2]
[327368258,1716024642852,-500.0,0.00016438,2]
[327368259,1716024642861,-151.0,0.00016438,2]
[327368260,1716024642870,-500.0,0.00016438,2]
[327368261,1716024642879,-151.0,0.00016438,2]
[327368262,1716024642888,-151.0,0.00016438,2]
[327368263,1716024642897,-500.0,0.00016438,2]
[327368264,1716024642906,-151.0,0.00016438,2]
[327368265,1716024642915,-526.51,0.00016438,2]
[327368266,1716024642924,-500.0,0.00016438,2]
[327368267,1716024642934,-500.0,0.00016438,2]
[327368268,1716024642943,-500.0,0.00016438,2]
[327368269,1716024642953,-501.71417667,0.00016438,2]
[327368270,1716024642962,-500.0,0.00016438,2]
[327368271,1716024642971,-500.0,0.00016438,2]
[327368272,1716024642981,-500.0,0.00016438,2]
[327368273,1716024642990,-500.0,0.00016438,2]
[327368274,1716024643000,-500.0,0.00016438,2]
[327368275,1716024643009,-500.0,0.00016438,2]
[327368276,1716024643019,-500.0,0.00016438,2]
[327368278,1716024643028,-500.0,0.00016438,2]
[327368280,1716024643038,-500.0,0.00016438,2]
[327368283,1716024643047,-500.0,0.00016438,2]
[327368286,1716024643057,-500.0,0.00016438,2]
[327368289,1716024643066,-5683.95,0.00016438,2]
[327368291,1716024643076,-5683.95,0.00016438,2]
[327368292,1716024643087,-5683.95,0.00016438,2]
[327368294,1716024643099,-5683.95,0.00016438,2]
[327368295,1716024643109,-5683.95,0.00016438,2]
[327368296,1716024643119,-500.0,0.00016438,2]
[327368298,1716024643129,-5683.95,0.00016438,2]
[327368300,1716024643139,-5683.95,0.00016438,2]
[327368301,1716024643148,-500.0,0.00016438,2]
[327368302,1716024643158,-5683.95,0.00016438,2]
[327368303,1716024643167,-500.0,0.00016438,2]
[327368304,1716024643177,-5683.95,0.00016438,2]
[327368305,1716024643186,-500.0,0.00016438,2]
[327368306,1716024643195,-5683.95,0.00016438,2]
[327368307,1716024643204,-3571.97696793,0.00016438,2]
[327368327,1716024643672,-2111.97303207,0.00016438,2]
[327368328,1716024643681,-500.0,0.00016438,2]
[327368329,1716024643691,-500.0,0.00016438,2]
[327368330,1716024643700,-542.35,0.00016438,2]
[327368331,1716024643709,-344.97460582,0.00016438,2]
[327368332,1716024643719,-507.11518124,0.00016438,2]
[327368333,1716024643729,-2045.0,0.00016438,2]
[327368334,1716024643738,-500.0,0.00016438,2]
[327368335,1716024643748,-500.0,0.00016438,2]
[327368336,1716024643757,-500.0,0.00016438,2]
[327368337,1716024643766,-500.0,0.00016438,2]
[327368338,1716024643775,-500.0,0.00016438,2]
[327368339,1716024643785,-500.0,0.00016438,2]
[327368340,1716024643794,-500.0,0.00016438,2]
[327368341,1716024643803,-448.20534619,0.00016438,2]
[327368342,1716024643812,-500.0,0.00016438,2]
[327368343,1716024643821,-500.0,0.00016438,2]
[327368344,1716024643830,-500.0,0.00016438,2]
[327368345,1716024643841,-500.0,0.00016438,2]
[327368346,1716024643850,-500.0,0.00016438,2]
[327368347,1716024643859,-500.0,0.00016438,2]
[327368349,1716024643868,-500.0,0.00016438,2]
[327368351,1716024643877,-500.0,0.00016438,2]
[327368353,1716024643886,-151.0,0.00016438,2]
[327368355,1716024643895,-151.0,0.00016438,2]
[327368357,1716024643904,-151.0,0.00016438,2]
[327368359,1716024643913,-151.0,0.00016438,2]
[327368361,1716024643923,-251.0,0.00016438,2]
[327368363,1716024643931,-151.0,0.00016438,2]
[327368365,1716024643941,-151.0,0.00016438,2]
[327368367,1716024643950,-151.0,0.00016438,2]
[327368369,1716024643960,-151.0,0.00016438,2]
[327368371,1716024643969,-151.0,0.00016438,2]
[327368373,1716024643978,-151.0,0.00016438,2]
[327368375,1716024643988,-151.0,0.00016438,2]
[327368377,1716024643997,-151.0,0.00016438,2]
[327368379,1716024644006,-151.0,0.00016438,2]
[327368382,1716024644016,-151.0,0.00016438,2]
[327368384,1716024644025,-151.0,0.00016438,2]
[327368385,1716024644035,-175.07865,0.00016438,2]
[327368387,1716024644044,-274.0226886,0.000165,2]
[327368389,1716024644053,-1332.981547,0.00016711,2]
[327368391,1716024644063,-1332.981547,0.00016711,2]
[327368393,1716024644073,-5683.95,0.00016711,2]
[327368395,1716024644082,-5683.95,0.00016711,2]
[327368397,1716024644092,-500.0,0.00016712,2]
[327368399,1716024644101,-500.0,0.00016712,2]
[327368401,1716024644111,-500.0,0.00016712,2]
[327368403,1716024644120,-500.0,0.00016712,2]
[327368405,1716024644129,-500.0,0.00016712,2]
[327368407,1716024644138,-500.0,0.00016712,2]
[327368409,1716024644148,-500.0,0.00016712,2]
[327368411,1716024644157,-500.0,0.00016712,2]
[327368413,1716024644166,-500.0,0.00016712,2]
[327368415,1716024644175,-500.0,0.00016712,2]
[327368417,1716024644184,-500.0,0.00016712,2]
[327368419,1716024644194,-500.0,0.00016712,2]
[327368421,1716024644202,-500.0,0.00016712,2]
[327368423,1716024644211,-500.0,0.00016712,2]
[327368425,1716024644220,-500.0,0.00016712,2]
[327368427,1716024644230,-500.0,0.00016712,2]
[327368429,1716024644238,-500.0,0.00016712,2]
[327368431,1716024644247,-500.0,0.00016712,2]
[327368433,1716024644257,-500.0,0.00016712,2]
[327368435,1716024644266,-500.0,0.00016712,2]
[327368437,1716024644275,-500.0,0.00016712,2]
[327368439,1716024644285,-500.0,0.00016712,2]
[327368441,1716024644294,-500.0,0.00016712,2]
[327368443,1716024644303,-500.0,0.00016712,2]
[327368445,1716024644313,-500.0,0.00016712,2]
[327368447,1716024644322,-500.0,0.00016712,2]
[327368449,1716024644331,-500.0,0.00016712,2]
[327368451,1716024644340,-500.0,0.00016712,2]
[327368453,1716024644349,-500.0,0.00016712,2]
[327368455,1716024644360,-500.0,0.00016712,2]
[327368457,1716024644372,-500.0,0.00016712,2]
[327368459,1716024644381,-500.0,0.00016712,2]
[327368461,1716024644391,-500.0,0.00016712,2]
[327368463,1716024644401,-500.0,0.00016712,2]
[327368465,1716024644411,-500.0,0.00016712,2]
[327368467,1716024644420,-500.0,0.00016712,2]
[327368469,1716024644430,-500.0,0.00016712,2]
[327368471,1716024644441,-500.0,0.00016712,2]
[327368473,1716024644450,-151.0,0.00016712,2]
[327368475,1716024644459,-295.589504,0.00016712,2]
[327368477,1716024644468,-500.0,0.00016712,2]
[327368479,1716024644478,-500.0,0.00016712,2]
[327368481,1716024644487,-500.0,0.00016712,2]
[327368483,1716024644497,-500.0,0.00016712,2]
[327368485,1716024644506,-500.0,0.00016712,2]
[327368487,1716024644515,-500.0,0.00016712,2]
[327368489,1716024644525,-500.0,0.00016712,2]
[327368491,1716024644534,-500.0,0.00016712,2]
[327368493,1716024644543,-500.0,0.00016712,2]
[327368495,1716024644552,-500.0,0.00016712,2]
[327368496,1716024644562,-500.0,0.00016712,2]
[327368498,1716024644572,-1458.29,0.00016712,2]
[327368500,1716024644581,-500.0,0.00016712,2]
[327368502,1716024644592,-500.0,0.00016712,2]
[327368504,1716024644601,-251.77499278,0.00016712,2]
[327368506,1716024644611,-500.0,0.00016712,2]
[327368509,1716024644620,-500.0,0.00016712,2]
[327368510,1716024644629,-500.0,0.00016712,2]
[327368512,1716024644638,-570.28692845,0.00016712,2]
[327368514,1716024644648,-502.05487735,0.00016712,2]
[327368516,1716024644657,-503.56325061,0.00016712,2]
[327368519,1716024644666,-500.0,0.00016712,2]
[327368520,1716024644675,-500.0,0.00016712,2]
[327368523,1716024644685,-501.24555939,0.00016712,2]
[327368525,1716024644694,-500.0,0.00016712,2]
[327368526,1716024644702,-500.0,0.00016712,2]
[327368529,1716024644713,-500.0,0.00016712,2]
[327368531,1716024644722,-500.0,0.00016712,2]
[327368532,1716024644731,-500.0,0.00016712,2]
[327368535,1716024644740,-500.0,0.00016712,2]
[327368536,1716024644750,-500.0,0.00016712,2]
[327368538,1716024644759,-500.0,0.00016712,2]
[327368541,1716024644768,-500.0,0.00016712,2]
[327368543,1716024644778,-151.0,0.00016712,2]
[327368544,1716024644787,-151.0,0.00016712,2]
[327368546,1716024644797,-151.0,0.00016712,2]
[327368547,1716024644806,-500.0,0.00016712,2]
[327368548,1716024644815,-500.0,0.00016712,2]
[327368549,1716024644824,-500.0,0.00016712,2]
[327368550,1716024644833,-500.0,0.00016712,2]
[327368551,1716024644943,-500.0,0.00016712,2]
[327368552,1716024644954,-500.0,0.00016712,2]
[327368553,1716024644963,-241.15695449,0.00016712,2]
[327368554,1716024644973,-633.15,0.00016712,2]
[327368555,1716024644984,-610.853726,0.00016712,2]
[327368556,1716024644993,-610.853726,0.00016712,2]
[327368557,1716024645002,-610.853726,0.00016712,2]
[327368558,1716024645011,-610.853726,0.00016712,2]
[327368559,1716024645020,-610.853726,0.00016712,2]
[327368560,1716024645030,-610.853726,0.00016712,2]
[327368562,1716024645040,-275.76,0.00016712,2]
[327368564,1716024645049,-500.0,0.00016712,2]
[327368566,1716024645059,-257.550236,0.00016712,2]
[327368568,1716024645068,-257.550236,0.00016712,2]
[327368570,1716024645078,-257.550236,0.00016712,2]
[327368572,1716024645088,-500.0,0.00016712,2]
[327368574,1716024645098,-500.0,0.00016712,2]
[327368576,1716024645107,-500.0,0.00016712,2]
[327368578,1716024645116,-257.550236,0.00016712,2]
[327368580,1716024645126,-257.550236,0.00016712,2]
[327368582,1716024645135,-503.46003157,0.00016712,2]
[327368584,1716024645144,-257.550236,0.00016712,2]
[327368586,1716024645154,-500.0,0.00016712,2]
[327368588,1716024645163,-500.0,0.00016712,2]
[327368590,1716024645172,-500.0,0.00016712,2]
[327368592,1716024645182,-500.0,0.00016712,2]
[327368594,1716024645192,-500.0,0.00016712,2]
[327368596,1716024645202,-500.0,0.00016712,2]
[327368598,1716024645211,-556.366064,0.00016712,2]
[327368600,1716024645221,-556.366064,0.00016712,2]
[327368602,1716024645230,-556.366064,0.00016712,2]
[327368604,1716024645239,-500.0,0.00016712,2]
[327368606,1716024645249,-511.56551769,0.00016712,2]
[327368608,1716024645258,-556.366064,0.00016712,2]
[327368610,1716024645268,-556.366064,0.00016712,2]
[327368612,1716024645277,-556.366074,0.00016712,2]
[327368614,1716024645286,-500.0,0.00016712,2]
[327368616,1716024645296,-500.0,0.00016712,2]
[327368618,1716024645305,-500.0,0.00016712,2]
[327368620,1716024645315,-500.0,0.00016712,2]
[327368622,1716024645324,-500.0,0.00016712,2]
[327368624,1716024645333,-151.0,0.00016712,2]
[327368626,1716024645343,-1390.03,0.00016712,2]
[327368628,1716024645354,-206.584602,0.00016712,2]
[327368630,1716024645368,-500.0,0.00016712,2]
[327368632,1716024645377,-500.0,0.00016712,2]
[327368634,1716024645386,-286.51042685,0.00016712,2]
[327368661,1716024645636,-1439.7176633,0.00015712,2]
[327368663,1716024645647,-151.0,0.00016438,2]
[327368665,1716024645656,-42.86898977,0.00016438,2]
[327368668,1716024645667,-108.13101023,0.00016438,2]
[327368670,1716024645677,-213.48957315,0.00016712,2]
[327368672,1716024645687,-312.22969207,0.00016712,2]
[327368674,1716024645696,-500.0,0.00016712,2]
[327368676,1716024645706,-504.8134935,0.00016712,2]
[327368678,1716024645715,-500.0,0.00016712,2]
[327368680,1716024645725,-623.79392067,0.00016712,2]
[327368682,1716024645734,-639.03,0.00016712,2]
[327368684,1716024645743,-500.0,0.00016712,2]
[327368686,1716024645752,-503.85131682,0.00016712,2]
[327368688,1716024645761,-500.0,0.00016712,2]
[327368690,1716024645771,-500.0,0.00016712,2]
[327368692,1716024645780,-518.74438276,0.00016712,2]
[327368693,1716024645789,-1332.981547,0.00016712,2]
[327368696,1716024645798,-372.78709744,0.00016712,2]
[327368776,1716024646526,-24859.74618066,0.00016437,2]
[327369061,1716024649908,296.3,0.00010959,2]
[327369099,1716024660623,246.91,0.00010959,2]
[327369100,1716024671133,205.76,0.00010959,2]
[327369101,1716024681638,171.47,0.00010959,2]
[327369102,1716024692128,857.36,0.00010959,2]
[327369103,1716024743650,165.89955326,0.00010959,2]
[327369120,1716025262420,250.0,7.783e-05,2]
[327369121,1716025301825,10227.73305239,7.78e-05,2]
[327369122,1716025416584,585.77326225,0.00016,30]
[327369123,1716025634108,-154.7215013,7.537e-05,2]
[327369124,1716025634129,-14.26942176,7.537e-05,2]
[327369125,1716025635120,-1336.170178,7.537e-05,2]
[327369126,1716025635140,-909.64823199,7.537e-05,2]
[327369127,1716025635161,-1043.25678867,7.538e-05,2]
[327369128,1716025635180,-194.45514723,7.538e-05,2]
[327369129,1716025635200,-2634.32657847,7.538e-05,2]
[327369130,1716025635219,-154.7215013,7.539e-05,2]
[327369131,1716025635239,-803.39175304,7.539e-05,2]
[327369132,1716025635258,-154.7215013,7.539e-05,2]
[327369133,1716025635278,-285.03925166,7.539e-05,2]
[327369134,1716025635298,-513.4844886,7.539e-05,2]
[327369135,1716025635318,-158.51655577,7.539e-05,2]
[327369136,1716025635337,-487.60891745,7.54e-05,2]
[327369137,1716025635358,-186.89118678,7.54e-05,2]
[327369138,1716025635377,-154.7215013,7.54e-05,2]
[327369139,1716025635399,-16985.88138908,7.54e-05,2]
[327369140,1716025636160,-1094.84700582,7.54e-05,2]
[327369141,1716025638258,757.516321,6.542e-05,2]
[327369143,1716025665219,154.7215013,6.542e-05,2]
[327369144,1716025665268,16146.7377332,6.542e-05,2]
[327369145,1716025669148,3372.03782202,6.542e-05,2]
[327369146,1716025669457,364.91402204,6.542e-05,2]
[327369148,1716025679201,1407.35725346,6.542e-05,2]
[327369149,1716025683184,2796.71534698,6.542e-05,2]
[327369150,1716025683214,575.32247504,6.542e-05,2]
[327369151,1716025683254,222.7071254,6.542e-05,2]
[327369153,1716025685456,363.0274328,6.542e-05,2]
[327369154,1716025707327,2685.45311258,6.542e-05,2]
[327369156,1716025719174,425.0,0.000226,30]
[327369158,1716025724859,1186.1631566,6.638e-05,2]
[327369161,1716025732433,250.0,6.575e-05,2]
[327369164,1716025745114,-20245.7153735,7.453e-05,2]
[327369165,1716025745133,-154.7215013,7.454e-05,2]
[327369166,1716025745152,-690.19911136,7.454e-05,2]
[327369167,1716025745171,-154.7215013,7.454e-05,2]
[327369168,1716025745192,-154.7215013,7.454e-05,2]
[327369169,1716025745211,-316.15927372,7.455e-05,2]
[327369170,1716025745229,-2678.78839717,7.455e-05,2]
[327369171,1716025745249,-452.52831116,7.456e-05,2]
[327369172,1716025745267,-154.7215013,7.456e-05,2]
[327369173,1716025745287,-1094.99548197,7.456e-05,2]
[327369174,1716025745307,-835.50091713,7.456e-05,2]
[327369175,1716025745326,-154.7215013,7.456e-05,2]
[327369176,1716025745346,-525.64777211,7.457e-05,2]
[327369177,1716025745365,-684.60091818,7.457e-05,2]
[327369178,1716025745385,-157.93380693,7.457e-05,2]
[327369179,1716025745405,-154.7215013,7.458e-05,2]
[327369180,1716025745426,-10508.75516608,7.532e-05,2]
[327369181,1716025745446,-1897.58698072,7.533e-05,2]
[327369182,1716025745466,-428.91682122,7.538e-05,2]
[327369183,1716025745487,-465.44821182,7.538e-05,2]
[327369184,1716025745506,-186.83898986,7.538e-05,2]
[327369185,1716025745526,-284.95814016,7.538e-05,2]
[327369186,1716025745545,-1350.04620596,7.538e-05,2]
[327369187,1716025745567,-268.91033932,7.538e-05,2]
[327369188,1716025745587,-476.7507116,7.538e-05,2]
[327369189,1716025745607,-194.24670663,7.538e-05,2]
[327369190,1716025745626,-158.51655577,7.652e-05,2]
[327369191,1716025745646,-1021.472207,7.653e-05,2]
[327369192,1716025745667,-14672.26694761,7.78e-05,2]
[327369193,1716025745687,-256.72591742,7.783e-05,2]
[327369194,1716025745710,-110.75113587,8.781e-05,2]
[327369195,1716025745736,-547.31451616,8.781e-05,2]
[327369196,1716025745756,-154.73694719,8.781e-05,2]
[327369197,1716025745776,-578.69221667,8.781e-05,2]
[327369198,1716025745798,-677.33465905,8.781e-05,2]
[327369199,1716025745820,-2114.19374467,8.781e-05,2]
[327369200,1716025745840,-328.22139918,8.781e-05,2]
[327369201,1716025745859,-154.73694719,8.781e-05,2]
[327369202,1716025745879,-803.39175304,8.781e-05,2]
[327369203,1716025745898,-977.58833984,8.781e-05,2]
[327369204,1716025745917,-909.39943205,8.781e-05,2]
[327369205,1716025745935,-210.02683327,8.781e-05,2]
[327369206,1716025745955,-154.7215013,8.781e-05,2]
[327369207,1716025745975,-154.98418636,8.781e-05,2]
[327369208,1716025745995,-13076.55665403,8.781e-05,2]
[327369209,1716025750103,-13.92771562,8.781e-05,2]
[327369210,1716025750124,-204.58778399,8.782e-05,2]
[327369211,1716025750144,-4828.89924194,8.782e-05,2]
[327369212,1716025750164,-56826.46296436,8.783e-05,2]
[327369213,1716025750184,-7894.33531896,9.78e-05,2]
[327369214,1716025750206,-375.57327238,9.899e-05,2]
[327369215,1716025750227,-4339.19925065,9.899e-05,2]
[327369216,1716025750247,-1136.28761432,0.0001,2]
[327369217,1716025750267,-9398.82663272,0.0001,2]
[327369218,1716025750286,-154.7215013,0.0001,2]
[327369219,1716025750308,-710.86,0.00010959,2]
[327369220,1716025752852,273.37336231,9.9e-05,2]
[327369223,1716025757340,166.96671091,9.999e-05,2]
[327369224,1716025757411,929.72317015,8.779e-05,2]
[327369225,1716025757430,2712.86187073,8.779e-05,2]
[327369227,1716025758060,2147.79969177,8.779e-05,2]
[327369228,1716025759304,155.05333778,9.999e-05,2]
[327369229,1716025760762,273.37336231,9.9e-05,2]
[327369230,1716025760892,567.73317195,9.999e-05,2]
[327369231,1716025761142,154.7215013,9.999e-05,2]
[327369232,1716025762093,-1187.0538855,0.00013699,2]
[327369233,1716025762114,-581.731199,0.00013699,2]
[327369234,1716025762135,-283.5045588,0.000137,2]
[327369235,1716025762156,-154.7215013,0.000137,2]
[327369236,1716025762177,-1007.7246252,0.00013959,2]